[Event "FIDE Womens GP Gibraltar 2021"]
[Site "Caleta"]
[Date "2021.05.25"]
[Round "4.3"]
[White "Saduakassova, Dinara"]
[Black "Kashlinskaya, Alina"]
[Result "1/2-1/2"]
[ECO "D73"]
[WhiteElo "2500"]
[BlackElo "2494"]
[Annotator "ChessBase"]
[PlyCount "23"]
[EventDate "2021.05.22"]
[EventType "tourn"]
[EventCountry "GGB"]
[Tiebreak "Koya+Number of black wins+Number of wins"]
[SourceTitle "playchess.com"]
[Source "ChessBase"]
[SourceQuality "1"]
[TimeControl "40/5400+30:1800+30"]

1. d4 {[%emt 0:00:00]} Nf6 {[%emt 0:00:00]} 2. c4 {[%emt 0:00:00]} g6 {[%emt 0:
00:00]} 3. g3 {[%emt 0:00:00]} c5 {[%emt 0:00:04]} 4. Nf3 {[%emt 0:00:01]} Bg7
{[%emt 0:00:31]} 5. Bg2 {[%emt 0:00:06]} cxd4 {[%emt 0:00:27]} 6. Nxd4 {
[%emt 0:00:17]} O-O {[%emt 0:00:14]} 7. O-O {[%emt 0:02:47]} d5 {[%emt 0:00:36]
} 8. cxd5 {[%emt 0:05:27]} Nxd5 {[%emt 0:00:48]} 9. Nb5 {[%emt 0:08:22]} Be6 {
[%emt 0:02:01]} 10. Nd4 {[%emt 0:04:31]} Bc8 {[%emt 0:00:40]} 11. Nb5 {[%emt 0:
05:47]} Be6 {[%emt 0:00:46]} 12. Nd4 {[%emt 0:00:06]} 1/2-1/2

[Event "FIDE Womens GP Gibraltar 2021"]
[Site "Caleta"]
[Date "2021.05.25"]
[Round "4.6"]
[White "Bulmaga, Irina"]
[Black "Abdumalik, Zhansaya"]
[Result "1/2-1/2"]
[ECO "B33"]
[WhiteElo "2440"]
[BlackElo "2472"]
[Annotator "ChessBase"]
[PlyCount "62"]
[EventDate "2021.05.22"]
[EventType "tourn"]
[EventCountry "GGB"]
[Tiebreak "Koya+Number of black wins+Number of wins"]
[SourceTitle "playchess.com"]
[Source "ChessBase"]
[SourceQuality "1"]
[TimeControl "40/5400+30:1800+30"]

1. e4 {[%emt 0:00:00]} c5 {[%emt 0:00:00]} 2. Nf3 {[%emt 0:00:00]} e6 {[%emt 0:
00:00]} 3. d4 {[%emt 0:00:00]} cxd4 {[%emt 0:00:00]} 4. Nxd4 {[%emt 0:00:00]}
Nf6 {[%emt 0:00:06]} 5. Nc3 {[%emt 0:00:27]} Nc6 {[%emt 0:00:05]} 6. Ndb5 {
[%emt 0:00:31]} d6 {[%emt 0:01:35]} 7. Bf4 {[%emt 0:00:10]} e5 {[%emt 0:00:06]}
8. Bg5 {[%emt 0:00:06]} a6 {[%emt 0:00:05]} 9. Na3 {[%emt 0:00:06]} b5 {
[%emt 0:00:07]} 10. Nd5 {[%emt 0:00:06]} Be7 {[%emt 0:00:10]} 11. Bxf6 {
[%emt 0:00:10]} Bxf6 {[%emt 0:00:06]} 12. c3 {[%emt 0:00:42]} Ne7 {[%emt 0:00:
13]} 13. Nxf6+ {[%emt 0:03:35]} gxf6 {[%emt 0:00:26]} 14. c4 {[%emt 0:16:58]}
Qa5+ {[%emt 0:14:57]} 15. Qd2 {[%emt 0:00:51]} Qxd2+ {[%emt 0:00:17]} 16. Kxd2
{[%emt 0:00:08]} bxc4 {[%emt 0:03:51]} 17. Nxc4 {[%emt 0:03:28]} O-O {[%emt 0:
00:38]} 18. Nb6 {[%emt 0:03:00]} Rb8 {[%emt 0:00:34]} 19. Nxc8 {[%emt 0:00:15]}
Rfxc8 {[%emt 0:00:03]} 20. b3 {[%emt 0:01:59]} a5 {[%emt 0:00:06]} 21. Rc1 {
[%emt 0:07:34]} Rxc1 {[%emt 0:05:51]} 22. Kxc1 {[%emt 0:01:34]} f5 {[%emt 0:00:
13]} 23. exf5 {[%emt 0:08:53]} Nxf5 {[%emt 0:00:46]} 24. Bc4 {[%emt 0:02:41]}
Kg7 {[%emt 0:01:19]} 25. Rd1 {[%emt 0:00:41]} Nd4 {[%emt 0:00:29]} 26. Kb2 {
[%emt 0:06:09]} Kf6 {[%emt 0:07:20]} 27. Rd3 {[%emt 0:01:46]} h5 {[%emt 0:04:
55]} 28. Rh3 {[%emt 0:02:45]} Kg6 {[%emt 0:01:27]} 29. Rg3+ {[%emt 0:01:02]}
Kf6 {[%emt 0:00:23]} 30. Rh3 {[%emt 0:04:29]} Kg6 {[%emt 0:00:45]} 31. Rg3+ {
[%emt 0:01:00]} Kf6 {[%emt 0:00:15]} 1/2-1/2

[Event "FIDE Womens GP Gibraltar 2021"]
[Site "Caleta"]
[Date "2021.05.29"]
[Round "7.5"]
[White "Lagno, Kateryna"]
[Black "Paehtz, Elisabeth"]
[Result "1/2-1/2"]
[ECO "B92"]
[WhiteElo "2546"]
[BlackElo "2456"]
[Annotator "ChessBase"]
[PlyCount "102"]
[EventDate "2021.05.22"]
[EventType "tourn"]
[EventCountry "GGB"]
[Tiebreak "Koya+Number of black wins+Number of wins"]
[SourceTitle "playchess.com"]
[Source "ChessBase"]
[SourceQuality "1"]
[TimeControl "40/5400+30:1800+30"]

1. e4 {[%emt 0:00:03]} c5 {[%emt 0:00:03]} 2. Nf3 {[%emt 0:00:09]} d6 {[%emt 0:
00:03]} 3. d4 {[%emt 0:00:11]} cxd4 {[%emt 0:00:03]} 4. Nxd4 {[%emt 0:00:05]}
Nf6 {[%emt 0:00:04]} 5. Nc3 {[%emt 0:00:06]} a6 {[%emt 0:00:02]} 6. Be2 {
[%emt 0:00:15]} e5 {[%emt 0:00:04]} 7. Nf3 {[%emt 0:00:13]} Be7 {[%emt 0:02:38]
} 8. Bg5 {[%emt 0:00:20]} Be6 {[%emt 0:00:17]} 9. Bxf6 {[%emt 0:00:24]} Bxf6 {
[%emt 0:00:04]} 10. Nd5 {[%emt 0:00:11]} Nd7 {[%emt 0:00:09]} 11. O-O {[%emt 0:
13:03]} O-O {[%emt 0:00:46]} 12. a4 {[%emt 0:09:43]} Rc8 {[%emt 0:01:18]} 13.
c3 {[%emt 0:01:38]} Be7 {[%emt 0:07:39]} 14. a5 {[%emt 0:05:19]} Nf6 {[%emt 0:
04:59]} 15. Nb6 {[%emt 0:09:20]} Rc6 {[%emt 0:05:02]} 16. Ng5 {[%emt 0:04:52]}
Bc8 {[%emt 0:06:42]} 17. Nxc8 {[%emt 0:06:18]} Qxc8 {[%emt 0:02:02]} 18. Qc2 {
[%emt 0:03:30]} Qc7 {[%emt 0:03:16]} 19. Rfd1 {[%emt 0:11:53]} Rc5 {[%emt 0:06:
39]} 20. Qa4 {[%emt 0:00:11]} Bd8 {[%emt 0:02:19]} 21. Nf3 {[%emt 0:11:07]}
Rxa5 {[%emt 0:12:05]} 22. Qxa5 {[%emt 0:00:04]} Qxa5 {[%emt 0:00:02]} 23. Rxa5
{[%emt 0:00:05]} Bxa5 {[%emt 0:00:03]} 24. Rxd6 {[%emt 0:00:05]} Bc7 {[%emt 0:
01:51]} 25. Rd1 {[%emt 0:00:13]} Rd8 {[%emt 0:02:47]} 26. Rxd8+ {[%emt 0:00:18]
} Bxd8 {[%emt 0:00:02]} 27. Nxe5 {[%emt 0:00:06]} Nxe4 {[%emt 0:00:03]} 28. Bf3
{[%emt 0:02:28]} Nd6 {[%emt 0:00:29]} 29. Kf1 {[%emt 0:01:20]} a5 {[%emt 0:01:
38]} 30. Ke2 {[%emt 0:01:41]} Kf8 {[%emt 0:00:48]} 31. Bd5 {[%emt 0:01:19]} Ke7
{[%emt 0:00:57]} 32. Nd3 {[%emt 0:06:19]} b6 {[%emt 0:05:46]} 33. Ne5 {[%emt 0:
00:59]} Bc7 {[%emt 0:00:07]} 34. Nc6+ {[%emt 0:01:00]} Kf6 {[%emt 0:01:34]} 35.
g3 {[%emt 0:00:44]} Nc8 {[%emt 0:01:52]} 36. Bg2 {[%emt 0:00:28]} Ne7 {[%emt 0:
00:41]} 37. Nd4 {[%emt 0:00:05]} Bd6 {[%emt 0:01:50]} 38. Nb3 {[%emt 0:06:14]}
Ke6 {[%emt 0:13:41]} 39. Kd3 {[%emt 0:00:33]} Kd7 {[%emt 0:00:48]} 40. Nd4 {
[%emt 0:01:38]} Bc5 {[%emt 0:03:03]} 41. Kc4 {[%emt 0:31:14]} g6 {[%emt 0:33:
50]} 42. Bh3+ {[%emt 0:01:15]} Kc7 {[%emt 0:01:44]} 43. b4 {[%emt 0:04:31]}
Bxd4 {[%emt 0:11:40]} 44. Kxd4 {[%emt 0:00:30]} Nc6+ {[%emt 0:00:30]} 45. Kc4 {
[%emt 0:00:30]} Ne5+ {[%emt 0:00:30]} 46. Kb5 {[%emt 0:00:30]} axb4 {[%emt 0:
00:30]} 47. cxb4 {[%emt 0:00:30]} Nf3 {[%emt 0:00:30]} 48. Kc4 {[%emt 0:00:30]}
Kd6 {[%emt 0:00:30]} 49. Kb5 {[%emt 0:00:30]} Kc7 {[%emt 0:00:30]} 50. Kc4 {
[%emt 0:00:30]} Kd6 {[%emt 0:00:30]} 51. Kb5 {[%emt 0:00:30]} Ke5 {[%emt 0:00:
13]} 1/2-1/2

[Event "FIDE Womens GP Gibraltar 2021"]
[Site "Caleta"]
[Date "2021.05.31"]
[Round "9.6"]
[White "Saduakassova, Dinara"]
[Black "Paehtz, Elisabeth"]
[Result "1/2-1/2"]
[ECO "E04"]
[WhiteElo "2500"]
[BlackElo "2456"]
[Annotator "ChessBase"]
[PlyCount "60"]
[EventDate "2021.05.22"]
[EventType "tourn"]
[EventCountry "GGB"]
[Tiebreak "Koya+Number of black wins+Number of wins"]
[SourceTitle "playchess.com"]
[Source "ChessBase"]
[SourceQuality "1"]
[TimeControl "40/5400+30:1800+30"]

1. d4 {[%emt 0:00:04]} d5 {[%emt 0:00:07]} 2. c4 {[%emt 0:00:13]} e6 {[%emt 0:
00:03]} 3. Nf3 {[%emt 0:00:05]} Nf6 {[%emt 0:00:04]} 4. g3 {[%emt 0:00:04]}
Bb4+ {[%emt 0:00:05]} 5. Bd2 {[%emt 0:00:04]} a5 {[%emt 0:00:05]} 6. Bg2 {
[%emt 0:02:16]} dxc4 {[%emt 0:00:25]} 7. O-O {[%emt 0:06:34]} O-O {[%emt 0:00:
08]} 8. Bg5 {[%emt 0:03:28]} h6 {[%emt 0:00:05]} 9. Bxf6 {[%emt 0:03:07]} Qxf6
{[%emt 0:00:03]} 10. Qc2 {[%emt 0:02:01]} Nc6 {[%emt 0:00:08]} 11. Qxc4 {
[%emt 0:02:06]} e5 {[%emt 0:00:09]} 12. a3 {[%emt 0:10:46]} Bd6 {[%emt 0:02:53]
} 13. d5 {[%emt 0:03:11]} Nb8 {[%emt 0:01:14]} 14. Nc3 {[%emt 0:01:36]} Na6 {
[%emt 0:06:57]} 15. Nd2 {[%emt 0:06:38]} Bd7 {[%emt 0:02:27]} 16. Nde4 {
[%emt 0:06:43]} Qe7 {[%emt 0:01:06]} 17. Rfc1 {[%emt 0:02:33]} f5 {[%emt 0:15:
36]} 18. Nxd6 {[%emt 0:00:51]} cxd6 {[%emt 0:00:04]} 19. b4 {[%emt 0:01:50]}
Qd8 {[%emt 0:02:28]} 20. Qb3 {[%emt 0:06:25]} axb4 {[%emt 0:07:00]} 21. axb4 {
[%emt 0:00:05]} Qb6 {[%emt 0:00:07]} 22. Na4 {[%emt 0:02:17]} Bxa4 {[%emt 0:06:
33]} 23. Qxa4 {[%emt 0:00:05]} Nc7 {[%emt 0:12:33]} 24. Qd7 {[%emt 0:03:04]}
Rxa1 {[%emt 0:01:57]} 25. Rxa1 {[%emt 0:00:03]} Rf7 {[%emt 0:03:22]} 26. Qc8+ {
[%emt 0:01:11]} Rf8 {[%emt 0:01:10]} 27. Qd7 {[%emt 0:00:05]} Rf7 {[%emt 0:06:
54]} 28. Qc8+ {[%emt 0:04:19]} Rf8 {[%emt 0:01:49]} 29. Qd7 {[%emt 0:00:24]}
Rf7 {[%emt 0:02:18]} 30. Qc8+ {[%emt 0:00:08]} Rf8 {[%emt 0:01:47]} 1/2-1/2